fUSD/lending_fUSD_20240919
["ID","MTS","AMOUNT","RATE_DAILY","PERIOD"]
[338603738,1726764038057,500.0,0.00022999,120]
[338603739,1726764038336,500.0,0.00022999,120]
[338603740,1726764038371,500.0,0.00022999,120]
[338603741,1726764038655,500.0,0.00022999,120]
[338603742,1726764039479,500.0,0.00022999,120]
[338603743,1726764039737,500.0,0.00022999,120]
[338603744,1726764040057,500.0,0.00022999,120]
[338603745,1726764040431,500.0,0.00022999,120]
[338603746,1726764040700,168.49,0.00022999,120]
[338603747,1726764042878,500.0,0.00022999,120]
[338603748,1726764043006,399.26,0.00022999,120]
[338603749,1726764046113,500.0,0.00022999,120]
[338603750,1726764046399,468.55,0.00022999,120]
[338603751,1726764052666,500.0,0.00022999,120]
[338603752,1726764053074,500.0,0.00022999,120]
[338603753,1726764053223,500.0,0.00022999,120]
[338603754,1726764053613,500.0,0.00022999,120]
[338603755,1726764053876,500.0,0.00022999,120]
[338603756,1726764054160,500.0,0.00022999,120]
[338603757,1726764054476,500.0,0.00022999,120]
[338603758,1726764054734,461.81,0.00022999,120]
[338603759,1726764055668,159.53,0.0001269,2]
[338603760,1726764060142,500.0,0.00022999,120]
[338603761,1726764060428,522.67,0.00022999,120]
[338603762,1726764063644,500.0,0.00022999,120]
[338603763,1726764063908,517.2,0.00022999,120]
[338603764,1726764064505,802.28,0.0001269,2]
[338603765,1726764065980,500.0,0.00022999,120]
[338603766,1726764068357,500.0,0.00022999,120]
[338603767,1726764070467,500.0,0.00022999,120]
[338603768,1726764072524,500.0,0.00022999,120]
[338603769,1726764078531,516.17,0.00022999,120]
[338603770,1726764086141,500.0,0.00022999,120]
[338603771,1726764088310,522.37,0.00022999,120]
[338603772,1726764136689,753.51,0.00010846,2]
[338603773,1726764156393,178.35,0.00010959,2]
[338603774,1726764161058,499.93618607,0.00022999,120]
[338603775,1726764165969,500.0,0.00022999,120]
[338603776,1726764168016,500.0,0.00022999,120]
[338603777,1726764174338,500.0,0.00022999,120]
[338603778,1726764179090,248.99387128,0.00022999,120]
[338603779,1726764181318,500.0,0.00022999,120]
[338603780,1726764185618,595.11464745,0.00022999,120]
[338603781,1726764187781,432.23851795,0.00022999,120]
[338603782,1726764190279,500.0,0.00022999,120]
[338603783,1726764190311,500.0,0.00022999,120]
[338603784,1726764190566,500.0,0.00022999,120]
[338603785,1726764190861,217.08,0.00022999,120]
[338603786,1726764192503,500.0,0.00022999,120]
[338603787,1726764193069,500.0,0.00022999,120]
[338603788,1726764193333,500.0,0.00022999,120]
[338603789,1726764193606,411.51,0.00022999,120]
[338603790,1726764195653,500.0,0.00022999,120]
[338603791,1726764196429,500.0,0.00022999,120]
[338603792,1726764198195,500.0,0.00022999,120]
[338603793,1726764198781,500.0,0.00022999,120]
[338603794,1726764199110,493.33,0.00022999,120]
[338603795,1726764200646,500.0,0.00022999,120]
[338603796,1726764202790,500.0,0.00022999,120]
[338603797,1726764207416,200.0,0.00012556,2]
[338603798,1726764208404,500.0,0.00022999,120]
[338603799,1726764208444,500.0,0.00022999,120]
[338603800,1726764208550,500.0,0.00022999,120]
[338603801,1726764208829,516.52,0.00022999,120]
[338603802,1726764210563,500.0,0.00022999,120]
[338603803,1726764211291,500.0,0.00022999,120]
[338603804,1726764211591,500.0,0.00022999,120]
[338603805,1726764211870,500.0,0.00022999,120]
[338603806,1726764212233,500.0,0.00022999,120]
[338603807,1726764212503,348.81,0.00022999,120]
[338603808,1726764212863,150.0,0.00022986,120]
[338603809,1726764215390,500.0,0.00022999,120]
[338603810,1726764215660,379.14,0.00022999,120]
[338603811,1726764216662,499.98790243,0.00022999,120]
[338603812,1726764218222,500.0,0.00010871,2]
[338603813,1726764218567,500.0,0.00022999,120]
[338603814,1726764219243,616.52463523,0.00022999,120]
[338603815,1726764224451,500.0,0.00022999,120]
[338603816,1726764224712,500.0,0.00022999,120]
[338603817,1726764225000,596.5,0.00022999,120]
[338603818,1726764225056,500.0,0.00022999,120]
[338603819,1726764227121,500.0,0.00022999,120]
[338603820,1726764231034,499.7641596,0.00022999,120]
[338603821,1726764231658,152.31,0.00013918,30]
[338603822,1726764231807,606.82802305,0.00022999,120]
[338603823,1726764231932,580.0,0.00022999,120]
[338603824,1726764234139,500.0,0.00022999,120]
[338603825,1726764234463,639.79,0.00022999,120]
[338603826,1726764235544,500.0,0.00022999,120]
[338603827,1726764237659,500.0,0.00022999,120]
[338603828,1726764239661,500.0,0.00022999,120]
[338603829,1726764239944,500.0,0.00022999,120]
[338603830,1726764240208,499.58,0.00022999,120]
[338603831,1726764242969,500.0,0.00022999,120]
[338603832,1726764243277,500.0,0.00022999,120]
[338603833,1726764243574,632.57,0.00022999,120]
[338603834,1726764245531,308.82,0.00012589,2]
[338603835,1726764248851,583.68,0.00022999,120]
[338603836,1726764250900,500.0,0.00022999,120]
[338603837,1726764253228,500.0,0.00022999,120]
[338603838,1726764255464,500.0,0.00022999,120]
[338603839,1726764257532,639.6574497,0.00022999,120]
[338603840,1726764262430,500.0,0.00022999,120]
[338603841,1726764264486,500.0,0.00022999,120]
[338603842,1726764270616,500.0,0.00022999,120]
[338603843,1726764270655,500.0,0.00022999,120]
[338603844,1726764270911,500.0,0.00022999,120]
[338603845,1726764271174,195.26,0.00022999,120]
[338603846,1726764275020,23900.0,0.00012539,2]
[338603847,1726764277078,500.0,0.00012588,2]
[338603848,1726764286868,500.0,0.00022999,120]
[338603849,1726764287895,150.0,0.00012635,2]
[338603851,1726764302912,1000.0,0.00012635,2]
[338603852,1726764309915,500.0,0.00022999,120]
[338603896,1726764389991,228.76,0.00012577,2]
[338603897,1726764400828,575.7,0.00012528,2]
[338603905,1726764464319,250.0,0.0001253,2]
[338603906,1726764510767,150.0,0.00015618,120]
[338603907,1726764523163,172.0,0.00012609,2]
[338603908,1726764524211,176.44679914,0.000127,2]
[338603912,1726764548580,460.39,0.00012743,2]
[338603913,1726764552048,250.0,0.00012743,2]
[338603917,1726764571289,150.0,0.0001541,120]
[338603931,1726764631774,-150.0,0.00012799,2]
[338603932,1726764631783,-300.0,0.00012799,2]
[338603933,1726764631793,-214.57727663,0.000128,2]
[338603934,1726764631804,-1405.67922337,0.000128,2]
[338603935,1726764631813,-1781.02424384,0.000128,2]
[338603936,1726764631824,-2732.46935616,0.000128,2]
[338603937,1726764631834,-1480.16175654,0.000128,2]
[338603938,1726764631845,-862.70147104,0.000128,2]
[338603939,1726764631857,-59655.79427242,0.000128,2]
[338603940,1726764631866,-1909.6514,0.000128,2]
[338603941,1726764631875,-4986.3405,0.000128,2]
[338603942,1726764631884,-5689.45504762,0.000128,2]
[338603943,1726764631894,-150.0,0.00012877,2]
[338603944,1726764631903,-780.51,0.00012892,2]
[338603945,1726764632083,-780.51,0.00012895,2]
[338603946,1726764632094,-780.51,0.00012899,2]
[338603947,1726764632104,-500.0,0.000129,2]
[338603948,1726764632113,-154.57775305,0.000129,2]
[338603949,1726764632122,-7500.0,0.000129,2]
[338603950,1726764632132,-347.28117688,0.000129,2]
[338603951,1726764632142,-429.445549,0.000129,2]
[338603952,1726764632151,-326.38798786,0.000129,2]
[338603953,1726764632160,-2502.0585174,0.000129,2]
[338603954,1726764632169,-17605.87109269,0.000129,2]
[338603955,1726764632179,-780.51,0.00012902,2]
[338603956,1726764632189,-780.51,0.00012906,2]
[338603957,1726764632198,-780.51,0.00012909,2]
[338603958,1726764632207,-780.51,0.00012912,2]
[338603959,1726764632217,-780.51,0.00012916,2]
[338603960,1726764632230,-780.51,0.00012919,2]
[338603961,1726764632239,-780.51,0.00012923,2]
[338603962,1726764632249,-780.51,0.00012926,2]
[338603963,1726764632259,-780.51,0.00012929,2]
[338603964,1726764632272,-780.51,0.00012933,2]
[338603965,1726764632282,-500.0,0.00012935,2]
[338603966,1726764632292,-500.0,0.00012935,2]
[338603967,1726764632302,-500.0,0.00012935,2]
[338603968,1726764632311,-500.0,0.00012935,2]
[338603969,1726764632321,-500.0,0.00012935,2]
[338603970,1726764632331,-392.1779,0.00012935,2]
[338603971,1726764632341,-500.0,0.00012935,2]
[338603972,1726764632350,-500.0,0.00012935,2]
[338603973,1726764632360,-500.0,0.00012935,2]
[338603974,1726764632370,-521.6726,0.00012935,2]
[338603975,1726764632379,-780.51,0.00012936,2]
[338603976,1726764632388,-780.51,0.0001294,2]
[338603977,1726764632397,-780.51,0.00012943,2]
[338603978,1726764632407,-780.51,0.00012946,2]
[338603979,1726764632416,-780.51,0.0001295,2]
[338603980,1726764632425,-780.51,0.00012953,2]
[338603981,1726764632434,-780.51,0.00012957,2]
[338603982,1726764632443,-500.0,0.00012973,2]
[338603983,1726764632453,-152.6,0.0001299,2]
[338603984,1726764632463,-152.6,0.0001299,2]
[338603985,1726764632472,-152.6,0.0001299,2]
[338603986,1726764632482,-152.6,0.0001299,2]
[338603987,1726764632492,-152.6,0.0001299,2]
[338603988,1726764632502,-152.6,0.0001299,2]
[338603989,1726764632511,-152.6,0.0001299,2]
[338603990,1726764632523,-152.6,0.0001299,2]
[338603991,1726764632533,-152.6,0.0001299,2]
[338603992,1726764632542,-152.6,0.0001299,2]
[338603993,1726764632552,-21331.61426391,0.00012998,2]
[338603994,1726764632561,-499.99,0.00012998,2]
[338603995,1726764632571,-1689.48,0.00012998,2]
[338603996,1726764632581,-265043.32707245,0.00013,2]
[338603997,1726764632594,-784.3221489,0.00013,2]
[338603998,1726764632605,-549.52917014,0.00013,2]
[338603999,1726764632617,-295.33202042,0.00013,2]
[338604000,1726764632629,-1974.18309637,0.00013,2]
[338604001,1726764632641,-750.26546194,0.00013,2]
[338604002,1726764632653,-1266.60175907,0.00013,2]
[338604003,1726764632664,-9367.06642511,0.00013,2]
[338604004,1726764632676,-1503.44971342,0.00013,2]
[338604005,1726764632687,-1255.12,0.00013,2]
[338604006,1726764632699,-5395.38119057,0.00013,2]
[338604007,1726764632710,-1895.56766088,0.00013,2]
[338604008,1726764632722,-562.21440665,0.00013,2]
[338604009,1726764632733,-7171.924979,0.00013,2]
[338604010,1726764632744,-2498.3477175,0.00013,2]
[338604011,1726764632755,-1881.40812481,0.00013,2]
[338604012,1726764632767,-3070.66711255,0.00013,2]
[338604013,1726764632779,-983.93,0.00013,2]
[338604014,1726764632790,-1412.14945512,0.00013,2]
[338604015,1726764632801,-3121.07153573,0.00013,2]
[338604016,1726764632812,-22458.45920343,0.00013,2]
[338604017,1726764632823,-351.89855854,0.00013,2]
[338604018,1726764632834,-9072.45,0.00013,2]
[338604019,1726764632849,-793.35,0.00013,2]
[338604020,1726764632860,-2732.47067848,0.00013,2]
[338604021,1726764632871,-11359.51491428,0.00013,2]
[338604022,1726764632882,-4298.65525732,0.00013,2]
[338604023,1726764632893,-190560.0,0.00013,2]
[338604024,1726764632904,-905.36012168,0.00013,2]
[338604031,1726764637877,-14748.76972363,0.00013,2]
[338604032,1726764637889,-5545.7965783,0.00013,2]
[338604033,1726764637900,-3181.070885,0.00013,2]
[338604034,1726764637937,-1765.0,0.00013,2]
[338604035,1726764637948,-1372.2,0.00013,2]
[338604036,1726764637959,-348.23005832,0.00013,2]
[338604037,1726764637969,-941.43031319,0.00013,2]
[338604038,1726764637994,-308.42346545,0.00013,2]
[338604039,1726764638005,-79179.05201514,0.00013,2]
[338604040,1726764638053,-5466.68031588,0.00013,2]
[338604041,1726764638062,-784282.59514334,0.00013,2]
[338604042,1726764638073,-1109.26027776,0.00013,2]
[338604043,1726764638084,-4936.4916975,0.00013,2]
[338604044,1726764638110,-880.12,0.00013,2]
[338604045,1726764638121,-36923.19099976,0.00013,2]
[338604046,1726764638132,-645.49882476,0.00013,2]
[338604047,1726764638143,-929.30964568,0.00013,2]
[338604048,1726764638154,-82159.20723044,0.00013,2]
[338604049,1726764638165,-1921.952907,0.00013,2]
[338604050,1726764638176,-1514.63437236,0.00013,2]
[338604051,1726764638187,-1556.46944238,0.00013,2]
[338604052,1726764638198,-452.64,0.00013,2]
[338604053,1726764638209,-792.09124623,0.00013,2]
[338604054,1726764638223,-385.32961316,0.00013,2]
[338604055,1726764638235,-451.57864314,0.00013,2]
[338604062,1726764638346,-1850.0,0.00013,2]
[338604073,1726764639806,-9876.60459717,0.00013,2]
[338604074,1726764639819,-511.70455756,0.00013,2]
[338604075,1726764639830,-384.644286,0.00013,2]
[338604076,1726764639841,-1599.16214564,0.00013,2]
[338604077,1726764639852,-633.18610667,0.00013,2]
[338604078,1726764639863,-2400.0,0.00013,2]
[338604079,1726764639874,-8602.52214844,0.00013,2]
[338604080,1726764639885,-1001.60210072,0.00013,2]
[338604081,1726764639897,-2400.47475159,0.00013,2]
[338604082,1726764639908,-1986.15335335,0.00013,2]
[338604083,1726764639919,-489.17891229,0.00013,2]
[338604084,1726764639930,-8289.3,0.00013,2]
[338604085,1726764639941,-20973.64934183,0.00013,2]
[338604086,1726764639952,-1217.27,0.00013,2]
[338604087,1726764639963,-11809.42168032,0.00013,2]
[338604088,1726764639973,-796.28249317,0.00013,2]
[338604089,1726764639984,-1686.34268315,0.00013,2]
[338604090,1726764639995,-1270.04534107,0.00013,2]
[338604091,1726764640006,-1984.71987997,0.00013,2]
[338604092,1726764640017,-818.06656972,0.00013,2]
[338604093,1726764640032,-714.13926867,0.00013,2]
[338604094,1726764640045,-323.21934277,0.00013,2]
[338604095,1726764640055,-15122.18966287,0.00013,2]
[338604096,1726764640067,-558.89350208,0.00013,2]
[338604097,1726764640078,-13563.56734335,0.00013,2]
[338604098,1726764640089,-1996.96743644,0.00013,2]
[338604099,1726764640100,-1370.37733886,0.00013,2]
[338604100,1726764640111,-681.43362743,0.00013,2]
[338604101,1726764640122,-616.89321857,0.00013,2]
[338604102,1726764640133,-407.72315527,0.00013,2]
[338604103,1726764640144,-4503.46066958,0.00013,2]
[338604104,1726764640155,-352.82873677,0.00013,2]
[338604105,1726764640167,-31942.32762992,0.00013,2]
[338604106,1726764640178,-1907.97,0.00013,2]
[338604107,1726764640189,-985.8689958,0.00013,2]
[338604108,1726764640201,-9894.76560632,0.00013,2]
[338604109,1726764640212,-539.98683027,0.00013,2]
[338604111,1726764640230,-303.35499935,0.00013,2]
[338604113,1726764640241,-927.22751103,0.00013,2]
[338604114,1726764640252,-156894.73642967,0.00013,2]
[338604115,1726764640263,-745565.1906637,0.00013,2]
[338604116,1726764640277,-215039.92691491,0.00013,2]
[338604117,1726764640289,-344475.0874631,0.00013,2]
[338604118,1726764640305,-331.44623355,0.00013,2]
[338604119,1726764640317,-1637.29710056,0.00013,2]
[338604120,1726764640328,-982.24203917,0.00013,2]
[338604121,1726764640340,-394.63365108,0.00013,2]
[338604122,1726764640350,-2586.02150144,0.00013,2]
[338604123,1726764640361,-662.68309162,0.00013,2]
[338604124,1726764640373,-1048.582763,0.00013,2]
[338604125,1726764640384,-846.52210567,0.00013,2]
[338604146,1726764642814,-9843.08891014,0.00013,2]
[338604147,1726764642825,-1838.78,0.00013,2]
[338604148,1726764642836,-737.99988251,0.00013,2]
[338604149,1726764642847,-409.34192602,0.00013,2]
[338604150,1726764642858,-5636.7317611,0.00013,2]
[338604151,1726764642869,-1113.8701207,0.00013,2]
[338604152,1726764642880,-343.17906707,0.00013,2]
[338604153,1726764642891,-677.73625,0.00013,2]
[338604154,1726764642931,-26440.5105801,0.00013,2]
[338604155,1726764642942,-20210.40040686,0.00013,2]
[338604156,1726764642953,-1598.31428799,0.00013,2]
[338604157,1726764642964,-735.896,0.00013,2]
[338604158,1726764642975,-10988.3773015,0.00013,2]
[338604159,1726764642985,-5400.0,0.00013,2]
[338604160,1726764643000,-1589.224958,0.00013,2]
[338604161,1726764643011,-7489.85810752,0.00013,2]
[338604162,1726764643022,-298.93134934,0.00013,2]
[338604163,1726764643035,-1789.29207492,0.00013,2]
[338604164,1726764643047,-2386.06608778,0.00013,2]
[338604165,1726764643058,-1323.34911343,0.00013,2]
[338604166,1726764643069,-1271.12053757,0.00013,2]
[338604167,1726764643080,-1390.9712905,0.00013,2]
[338604168,1726764643092,-7488.03175676,0.00013,2]
[338604169,1726764643105,-364.93586938,0.00013,2]
[338604178,1726764645759,-586.98807355,0.00013,2]
[338604179,1726764645816,-5022.72191446,0.00013,2]
[338604180,1726764645828,-1269.0,0.00013,2]
[338604181,1726764645839,-10152.93128189,0.00013,2]
[338604182,1726764645849,-2133.07562019,0.00013,2]
[338604183,1726764645860,-438.217861,0.00013,2]
[338604184,1726764645872,-1415.44956061,0.00013,2]
[338604185,1726764645883,-3972.33381361,0.00013,2]
[338604186,1726764645894,-7593.45532814,0.00013,2]
[338604187,1726764645905,-879.9737992,0.00013,2]
[338604188,1726764645915,-117698.75954279,0.00013,2]
[338604189,1726764645926,-95603.46368482,0.00013,2]
[338604190,1726764645937,-428.95750769,0.00013,2]
[338604191,1726764645948,-493.70431179,0.00013,2]
[338604192,1726764645960,-946.21399857,0.00013,2]
[338604193,1726764645971,-1401.42201098,0.00013,2]
[338604194,1726764645982,-36801.39333077,0.00013,2]
[338604195,1726764645993,-805.58226419,0.00013,2]
[338604196,1726764646004,-4050.58204498,0.00013,2]
[338604197,1726764646015,-873.74712415,0.00013,2]
[338604198,1726764646026,-34567.01136628,0.00013,2]
[338604199,1726764646037,-43150.4207702,0.00013,2]
[338604200,1726764646048,-675.75650086,0.00013,2]
[338604201,1726764646059,-661.25382914,0.00013,2]
[338604202,1726764646070,-6491.30359102,0.00013,2]
[338604203,1726764646082,-8087.42770433,0.00013,2]
[338604204,1726764646093,-550.0,0.00013,2]
[338604205,1726764646104,-635.75,0.00013,2]
[338604206,1726764646114,-2420.86061955,0.00013,2]
[338604207,1726764646126,-10164.3352765,0.00013,2]
[338604208,1726764646139,-2283.42218229,0.00013,2]
[338604209,1726764646151,-274.50931672,0.00013,2]
[338604210,1726764646162,-618.3903605,0.00013,2]
[338604211,1726764646173,-17189.36167256,0.00013,2]
[338604212,1726764646184,-626.08111507,0.00013,2]
[338604213,1726764646195,-400.0,0.00013,2]
[338604214,1726764646206,-557.8322401,0.00013,2]
[338604215,1726764646218,-685.11662691,0.00013,2]
[338604216,1726764646230,-312.64,0.00013,2]
[338604217,1726764646242,-3917.03109125,0.00013,2]
[338604218,1726764646253,-366.75243373,0.00013,2]
[338604220,1726764646265,-2615.29685025,0.00013,2]
[338604221,1726764646277,-2481.06096,0.00013,2]
[338604222,1726764646288,-3225.84215097,0.00013,2]
[338604223,1726764646300,-674.79429573,0.00013,2]
[338604224,1726764646311,-432.00902886,0.00013,2]
[338604225,1726764646322,-10391.97917367,0.00013,2]
[338604226,1726764646332,-3690.46625153,0.00013,2]
[338604227,1726764646343,-481.61185414,0.00013,2]
[338604228,1726764646359,-4369.62043342,0.00013,2]
[338604229,1726764690733,150.0,0.00014639,120]
[338604230,1726764694011,791.01,0.00010959,2]
[338604231,1726764727638,165.91,0.00010959,2]
[338604232,1726764820998,250.0,0.00012648,2]
[338604233,1726764838764,150.0,0.00022986,120]
[338604234,1726764854616,200.0,0.00012644,2]
[338604235,1726764871278,150.0,0.00017453,120]
[338604236,1726764930774,150.0,0.00019516,120]
[338604237,1726764956106,324.24,0.00012648,2]
[338604238,1726765018725,152.31,0.00013918,30]
[338604239,1726765131259,230.19,0.00012577,2]
[338604240,1726765136802,176.44679914,0.00012724,2]
[338604241,1726765203168,1250.0,0.0001263,2]
[338604242,1726765267724,788.28,0.00010615,2]
[338604243,1726765353134,3630.77,0.00012625,2]
[338604244,1726765372268,150.0,0.00022986,120]
[338604245,1726765412374,840.0,0.00012453,2]
[338604246,1726765415673,253.4,0.00012453,2]
[338604247,1726765415894,23890.0,0.00012453,2]
[338604248,1726765490025,189.36,0.0001256,2]
[338604249,1726765503074,1250.0,0.0001263,2]
[338604250,1726765605234,250.0,0.00012527,2]
[338604251,1726765621752,169.94,0.00012485,2]
[338604252,1726765625676,152.31,0.00013918,30]
[338604265,1726765673351,233.32,0.00012469,2]
[338604266,1726765676861,3284.88,0.00012469,2]
[338604267,1726765698826,200.0,0.00012469,2]
[338604268,1726765707308,250.0,0.00012561,2]
[338604269,1726765717846,1663.35,0.00012561,2]
[338604270,1726765736073,250.0,0.00012561,2]
[338604271,1726765749066,803.99,0.00012554,2]
[338604278,1726765794997,825.04,0.00010656,2]
[338604286,1726765831973,-421.77186546,0.00012793,2]
[338604288,1726765831982,-500.0,0.00012896,2]
[338604289,1726765831992,-477.622,0.00012899,2]
[338604291,1726765832001,-188.374,0.00012899,2]
[338604293,1726765832010,-150.0,0.00012899,2]
[338604294,1726765832019,-300.0,0.00012899,2]
[338604295,1726765832029,-1914.34429719,0.000129,2]
[338604296,1726765832040,-2885.78790281,0.000129,2]
[338604297,1726765832049,-305.5086,0.000129,2]
[338604298,1726765832058,-5792.8752046,0.000129,2]
[338604299,1726765832070,-293.41476327,0.000129,2]
[338604300,1726765832081,-2248.6741294,0.000129,2]
[338604301,1726765832096,-524.44730273,0.000129,2]
[338604302,1726765832105,-975.7371,0.000129,2]
[338604303,1726765832114,-518.79450293,0.000129,2]
[338604304,1726765832124,-1605.79379707,0.000129,2]
[338604305,1726765832133,-193.27317337,0.000129,2]
[338604306,1726765832145,-1069.86482663,0.000129,2]
[338604307,1726765832154,-606.25969852,0.000129,2]
[338604308,1726765832164,-1285.70283055,0.000129,2]
[338604309,1726765832175,-357.46371413,0.000129,2]
[338604310,1726765832186,-424.51363552,0.000129,2]
[338604311,1726765832197,-2331.32555382,0.000129,2]
[338604312,1726765832217,-1630.83773361,0.000129,2]
[338604313,1726765832229,-863.89683385,0.000129,2]
[338604314,1726765832238,-1336.10316615,0.000129,2]
[338604315,1726765832249,-6389.6538,0.000129,2]
[338604316,1726765832259,-4956.24014333,0.000129,2]
[338604317,1726765832271,-3163.28687386,0.000129,2]
[338604318,1726765832280,-152.36884248,0.000129,2]
[338604320,1726765832288,-286.29703266,0.000129,2]
[338604322,1726765832297,-326.38798785,0.000129,2]
[338604324,1726765832306,-231.52078458,0.000129,2]
[338604325,1726765832315,-167.0,0.00012919,2]
[338604326,1726765832324,-825.04,0.0001292,2]
[338604328,1726765832334,-500.0,0.00012973,2]
[338604330,1726765832343,-1303.27384699,0.00012999,3]
[338604332,1726765832352,-1431.05,0.00012999,2]
[338604333,1726765832361,-685.55240991,0.00013,2]
[338604334,1726765832372,-628.42,0.00013,2]
[338604335,1726765832384,-400.0,0.00013,2]
[338604337,1726765838078,-1886.88,0.00013,2]
[338604338,1726765838088,-29731.135,0.00013,2]
[338604339,1726765838097,-412.45240119,0.00013,2]
[338604340,1726765838138,-11613.22040254,0.00013,2]
[338604341,1726765838149,-14250.43253206,0.00013,2]
[338604342,1726765838159,-1120.66502401,0.00013,2]
[338604343,1726765838194,-879.14563992,0.00013,2]
[338604344,1726765838252,-2758.23380241,0.00013,2]
[338604345,1726765838263,-1016.26902024,0.00013,2]
[338604346,1726765838308,-2646.2132724,0.00013,2]
[338604347,1726765838319,-1516.97205639,0.00013,2]
[338604348,1726765838370,-1626.56160688,0.00013,2]
[338604349,1726765838381,-878.53945113,0.00013,2]
[338604350,1726765838392,-9178.32981854,0.00013,2]
[338604351,1726765838404,-24237.44037059,0.00013,2]
[338604352,1726765838427,-15061.86977785,0.00013,2]
[338604353,1726765838438,-764.14457792,0.00013,2]
[338604354,1726765838449,-1001.53451994,0.00013,2]
[338604359,1726765840159,-499.5891,0.00013,2]
[338604360,1726765840171,-5577.9,0.00013,2]
[338604361,1726765840966,-319.6616471,0.00013,2]
[338604362,1726765840978,-478675.7932491,0.00013,2]
[338604363,1726765840990,-34458.26946016,0.00013,2]
[338604364,1726765840999,-921179.13286805,0.00013,2]
[338604365,1726765841010,-767.27887278,0.00013,2]
[338604366,1726765841021,-1600.12786824,0.00013,2]
[338604367,1726765841034,-275.7064694,0.00013,2]
[338604368,1726765841047,-1911.04337263,0.00013,2]
[338604438,1726765843192,-5567.24797781,0.00013,2]
[338604439,1726765843205,-5550.89523965,0.00013,2]
[338604440,1726765843219,-20765.5517679,0.00013,2]
[338604453,1726765845963,-8999.29505237,0.00013,2]
[338604454,1726765845977,-9641.70396337,0.00013,2]
[338604455,1726765845988,-450.94003,0.00013,2]
[338604456,1726765845999,-638.09,0.00013,2]
[338604457,1726765846023,-327.09108309,0.00013,2]
[338604458,1726765846034,-756.14057168,0.00013,2]
[338604459,1726765846045,-721.62621433,0.00013,2]
[338604460,1726765846080,-1354.70535642,0.00013,2]
[338604461,1726765846091,-635.84286283,0.00013,2]
[338604462,1726765846138,-97666.8732724,0.00013,2]
[338604463,1726765846196,-12754.32304819,0.00013,2]
[338604464,1726765846254,-1906.18600947,0.00013,2]
[338604465,1726765846267,-431.2367175,0.00013,2]
[338604478,1726765930698,150.0,0.00022986,120]
[338604479,1726765937941,156.06,0.000149,31]
[338604480,1726765937998,156.06,0.000149,31]
[338604481,1726765952257,150.0,0.00022999,120]
[338604482,1726765966620,500.0,0.00022999,120]
[338604483,1726765966927,287.34658523,0.00022999,120]
[338604484,1726765974712,250.0,0.00010959,2]
[338604485,1726765986526,190.54,0.00010959,2]
[338604486,1726766005619,23900.0,0.00012703,2]
[338604487,1726766009514,328.0,0.00012703,2]
[338604488,1726766191528,604.49107064,0.00022999,120]
[338604489,1726766197506,500.0,0.00022999,120]
[338604490,1726766197782,500.0,0.00022999,120]
[338604491,1726766198120,278.47,0.00022999,120]
[338604492,1726766198344,250.0,0.00012403,2]